Workbook

Sheet Rückwärtsrechnung
A1: Rückwärtsrechnung Analysebedingungen / Ergebnisse
A2: Mittlere Bremsverzögerung | B2: m/s² | C2: 8
A3: Vollbremsstrecke | B3: m | C3: 12
A4: Bremsschwellstrecke | B4: m | C4: =(C8+C9)/3.6*C11/2 -> 2.851281292
A5: Reaktionsstrecke | B5: m | C5: =C9/3.6*C12 -> 11.72512517
A6: Reaktionspunkt (räumlich) | B6: m | C6: =SUM(C3:C5) -> 26.57640646
A7: Anfangsgeschwindigkeit | B7: km/h | C7: 0
A8: Vollbremsgeschwindigkeit | B8: km/h | C8: =(SQRT(C7/3.6*C7/3.6+2*C2*C3))*3.6 -> 49.88306326
A9: Bremsausgangsgeschwindigkeit | B9: km/h | C9: =(C8/3.6+C2/2*C11)*3.6 -> 52.76306326
A10: Vollbremsdauer | B10: s | C10: =(C8-C7)/3.6/C2 -> 1.732050808
A11: Bremsschwelldauer | B11: s | C11: 0.2
A12: Reaktionsdauer | B12: s | C12: 0.8
A13: Reaktionspunkt (zeitlich) | B13: s | C13: =SUM(C10:C12) -> 2.732050808
A15: Berechnungsanlage

Sheet Rückwärtsrechnung 2 Varianten
A1: Rückwärtsrechnung Analysebedingungen / Ergebnisse
A2: Mittlere Bremsverzögerung | B2: m/s² | C2: 8 | D2: 8.5
A3: Vollbremsstrecke | B3: m | C3: 32 | D3: =C3 -> 32
A4: Bremsschwellstrecke | B4: m | C4: =(C8+C9)/3.6*C11/2 -> 4.6054834 | D4: =(D8+D9)/3.6*D11/2 -> 4.749761516
A5: Reaktionsstrecke | B5: m | C5: =C9/3.6*C12 -> 18.7419336 | D5: =D9/3.6*D12 -> 19.33904606
A6: Reaktionspunkt (räumlich) | B6: m | C6: =SUM(C3:C5) -> 55.347417 | D6: =SUM(D3:D5) -> 56.08880758
A7: Anfangsgeschwindigkeit | B7: km/h | C7: 0 | D7: 0
A8: Vollbremsgeschwindigkeit | B8: km/h | C8: =(SQRT(C7/3.6*C7/3.6+2*C2*C3))*3.6 -> 81.45870119 | D8: =(SQRT(D7/3.6*D7/3.6+2*D2*D3))*3.6 -> 83.96570729
A9: Bremsausgangsgeschwindigkeit | B9: km/h | C9: =(C8/3.6+C2/2*C11)*3.6 -> 84.33870119 | D9: =(D8/3.6+D2/2*D11)*3.6 -> 87.02570729
A10: Vollbremsdauer | B10: s | C10: =(C8-C7)/3.6/C2 -> 2.828427125 | D10: =(D8-D7)/3.6/D2 -> 2.743977362
A11: Bremsschwelldauer | B11: s | C11: 0.2 | D11: =C11 -> 0.2
A12: Reaktionsdauer | B12: s | C12: 0.8 | D12: =C12 -> 0.8
A13: Reaktionspunkt (zeitlich) | B13: s | C13: =SUM(C10:C12) -> 3.828427125 | D13: =SUM(D10:D12) -> 3.743977362
A15: Berechnungsanlage

Sheet Rückwärtsrechnung Zeit
A1: Rückwärtsrechnung Analysebedingungen / Ergebnisse
A2: Mittlere Bremsverzögerung | B2: m/s² | C2: 8
A3: Vollbremsstrecke | B3: m | C3: =(C8/3.6*C8/3.6-C7/3.6*C7/3.6)/2/C2 -> 36
A4: Bremsschwellstrecke | B4: m | C4: =(C8+C9)/3.6*C11/2 -> 4.88
A5: Reaktionsstrecke | B5: m | C5: =C9/3.6*C12 -> 19.84
A6: Reaktionspunkt (räumlich) | B6: m | C6: =SUM(C3:C5) -> 60.72
A7: Anfangsgeschwindigkeit | B7: km/h | C7: 0
A8: Vollbremsgeschwindigkeit | B8: km/h | C8: =(C7/3.6+C2*C10)*3.6 -> 86.4
A9: Bremsausgangsgeschwindigkeit | B9: km/h | C9: =(C8/3.6+C2/2*C11)*3.6 -> 89.28
A10: Vollbremsdauer | B10: s | C10: 3
A11: Bremsschwelldauer | B11: s | C11: 0.2
A12: Reaktionsdauer | B12: s | C12: 0.8
A13: Reaktionspunkt (zeitlich) | B13: s | C13: =SUM(C10:C12) -> 4
A15: Berechnungsanlage

Sheet Vorwärtsrechnung 2 Varianten
A1: Vorwärtsrechnung Analysebedingungen / Ergebnisse
A2: Mittlere Bremsverzögerung | B2: m/s² | C2: 3 | D2: 4
A3: Vollbremsstrecke | B3: m | C3: =(C8/3.6*C8/3.6-C7/3.6*C7/3.6)/2/C2 -> 19.48002058 | D3: =(D8/3.6*D8/3.6-D7/3.6*D7/3.6)/2/D2 -> 22.74376543
A4: Bremsschwellstrecke | B4: m | C4: =(C8+C9)/3.6*C11/2 -> 2.192222222 | D4: =(D8+D9)/3.6*D11/2 -> 2.737777778
A5: Reaktionsstrecke | B5: m | C5: =C9/3.6*C12 -> 8.888888889 | D5: =D9/3.6*D12 -> 11.11111111
A6: Reaktionspunkt (räumlich) | B6: m | C6: =SUM(C3:C5) -> 30.56113169 | D6: =SUM(D3:D5) -> 36.59265432
A7: Endgeschwindigkeit | B7: km/h | C7: 0 | D7: =$C7 -> 0
A8: Vollbremsgeschwindigkeit | B8: km/h | C8: =(C9/3.6-C2/2*C11)*3.6 -> 38.92 | D8: =(D9/3.6-D2/2*D11)*3.6 -> 48.56
A9: Bremsausgangsgeschwindigkeit | B9: km/h | C9: 40 | D9: 50
A10: Vollbremsdauer | B10: s | C10: =(C8-C7)/3.6/C2 -> 3.603703704 | D10: =(D8-D7)/3.6/D2 -> 3.372222222
A11: Bremsschwelldauer | B11: s | C11: 0.2 | D11: =$C11 -> 0.2
A12: Reaktionsdauer | B12: s | C12: 0.8 | D12: =$C12 -> 0.8
A13: Reaktionspunkt (zeitlich) | B13: s | C13: =SUM(C10:C12) -> 4.603703704 | D13: =SUM(D10:D12) -> 4.372222222
A15: Berechnungsanlage

Sheet Vorwärtsrechnung
A1: Vorwärtsrechnung Analysebedingungen / Ergebnisse
A2: Mittlere Bremsverzögerung | B2: m/s² | C2: 8
A3: Vollbremsstrecke | B3: m | C3: =(C8/3.6*C8/3.6-C7/3.6*C7/3.6)/2/C2 -> 10.70743827
A4: Bremsschwellstrecke | B4: m | C4: =(C8+C9)/3.6*C11/2 -> 2.697777778
A5: Reaktionsstrecke | B5: m | C5: =C9/3.6*C12 -> 11.11111111
A6: Reaktionspunkt (räumlich) | B6: m | C6: =SUM(C3:C5) -> 24.51632716
A7: Endgeschwindigkeit | B7: km/h | C7: 0
A8: Vollbremsgeschwindigkeit | B8: km/h | C8: =(C9/3.6-C2/2*C11)*3.6 -> 47.12
A9: Bremsausgangsgeschwindigkeit | B9: km/h | C9: 50
A10: Vollbremsdauer | B10: s | C10: =(C8-C7)/3.6/C2 -> 1.636111111
A11: Bremsschwelldauer | B11: s | C11: 0.2
A12: Reaktionsdauer | B12: s | C12: 0.8
A13: Reaktionspunkt (zeitlich) | B13: s | C13: =SUM(C10:C12) -> 2.636111111
A15: Berechnungsanlage

Sheet Vorwärtsrechnung Weg
A1: Vorwärtsrechnung Analysebedingungen / Ergebnisse
A2: Mittlere Bremsverzögerung | B2: m/s² | C2: 8
A3: Vollbremsstrecke | B3: m | C3: 15
A4: Bremsschwellstrecke | B4: m | C4: =(C8+C9)/3.6*C11/2 -> 3.253333333
A5: Reaktionsstrecke | B5: m | C5: =C9/3.6*C12 -> 13.33333333
A6: Reaktionspunkt (räumlich) | B6: m | C6: =SUM(C3:C5) -> 31.58666667
A7: Endgeschwindigkeit | B7: km/h | C7: =3.6*SQRT(C8/3.6*C8/3.6-2*C2*C3) -> 12.34076173
A8: Vollbremsgeschwindigkeit | B8: km/h | C8: =(C9/3.6-C2/2*C11)*3.6 -> 57.12
A9: Bremsausgangsgeschwindigkeit | B9: km/h | C9: 60
A10: Vollbremsdauer | B10: s | C10: =(C8-C7)/3.6/C2 -> 1.554834662
A11: Bremsschwelldauer | B11: s | C11: 0.2
A12: Reaktionsdauer | B12: s | C12: 0.8
A13: Reaktionspunkt (zeitlich) | B13: s | C13: =SUM(C10:C12) -> 2.554834662
A15: Berechnungsanlage

Sheet Beschleunigung 2 Varianten
A1: Beschleunigung Analysebedingungen / Ergebnisse
A2: Mittlere Beschleunigung | B2: m/s² | C2: 1 | D2: 1
A3: Beschleunigungsstrecke | B3: m | C3: =(C5/3.6*C5/3.6-C4/3.6*C4/3.6)/2/C2 -> 8.680555556 | D3: =(D5/3.6*D5/3.6-D4/3.6*D4/3.6)/2/D2 -> 15.43209877
A4: Anfangsgeschwindigkeit | B4: km/h | C4: 0 | D4: =$C4 -> 0
A5: Endgeschwindigkeit | B5: km/h | C5: 15 | D5: 20
A6: Beschleunigungsdauer | B6: s | C6: =(C5-C4)/3.6/C2 -> 4.166666667 | D6: =(D5-D4)/3.6/D2 -> 5.555555556
A8: Berechnungsanlage 1
